Workbook

Sheet Plan1
A1: PLANILHA DE REFERÊNCIA MÁXIMA DE PREÇOS
A3: Item | B3: Localização | C3: Serviços | D3: Unidade | E3: Quantidade | F3: Preço Unitário (R$) | G3: Preço (R$)
A4: 1 | B4: BACIA DO ALTO SÃO FRANCISCO | C4: Serviço de elaboração de diagnóstico e projeto hidroambinetal. | D4: hectare | E4: =1415500*0.35 -> 495425 | F4: 4.51 | G4: =ROUND((E4*F4),2) -> 2234366.75
F5: Preço Total (R$) | G5: =SUM(G4:G4) -> 2234366.75
A7: Item | B7: Localização | C7: Serviços | D7: Unidade | E7: Quantidade | F7: Preço Unitário (R$) | G7: Preço (R$)
A8: 2 | B8: BACIA DO RIO PARÁ | C8: =C4 -> Serviço de elaboração de diagnóstico e projeto hidroambinetal. | D8: =D4 -> hectare | E8: =1223300*0.23 -> 281359 | F8: =F4 -> 4.51 | G8: =ROUND((E8*F8),2) -> 1268929.09
F9: Preço Total (R$) | G9: =SUM(G8:G8) -> 1268929.09
A11: Item | B11: Localização | C11: Serviços | D11: Unidade | E11: Quantidade | F11: Preço Unitário (R$) | G11: Preço (R$)
A12: 3 | B12: BACIA DO RIO PARAOPEBA | C12: =C8 -> Serviço de elaboração de diagnóstico e projeto hidroambinetal. | D12: =D8 -> hectare | E12: =1205425*0.35 -> 421898.75 | F12: =F8 -> 4.51 | G12: =ROUND((E12*F12),2) -> 1902763.36
F13: Preço Total (R$) | G13: =SUM(G12:G12) -> 1902763.36
A15: Item | B15: Localização | C15: Serviços | D15: Unidade | E15: Quantidade | F15: Preço Unitário (R$) | G15: Preço (R$)
A16: 4 | B16: BACIA DO ENTORNO DA REPRESA DE TRÊS MARIAS | C16: =C12 -> Serviço de elaboração de diagnóstico e projeto hidroambinetal. | D16: =D12 -> hectare | E16: =1865466*0.23 -> 429057.18 | F16: =F12 -> 4.51 | G16: =ROUND((E16*F16),2) -> 1935047.88
F17: Preço Total (R$) | G17: =SUM(G16:G16) -> 1935047.88
A19: Item | B19: Localização | C19: Serviços | D19: Unidade | E19: Quantidade | F19: Preço Unitário (R$) | G19: Preço (R$)
A20: 5 | B20: BACIA DO RIO DAS VELHAS | C20: =C16 -> Serviço de elaboração de diagnóstico e projeto hidroambinetal. | D20: =D16 -> hectare | E20: =2785705*0.35 -> 974996.75 | F20: =F16 -> 4.51 | G20: =ROUND((E20*F20),2) -> 4397235.34
F21: Preço Total (R$) | G21: =SUM(G20:G20) -> 4397235.34
A23: Item | B23: Localização | C23: Serviços | D23: Unidade | E23: Quantidade | F23: Preço Unitário (R$) | G23: Preço (R$)
A24: 6 | B24: BACIA DOS RIOS JEQUITAÍ E PACUÍ | C24: =C20 -> Serviço de elaboração de diagnóstico e projeto hidroambinetal. | D24: =D20 -> hectare | E24: =2504545*0.35 -> 876590.75 | F24: =F20 -> 4.51 | G24: =ROUND((E24*F24),2) -> 3953424.28
F25: Preço Total (R$) | G25: =SUM(G24:G24) -> 3953424.28
A27: Item | B27: Localização | C27: Serviços | D27: Unidade | E27: Quantidade | F27: Preço Unitário (R$) | G27: Preço (R$)
A28: 7 | B28: BACIA DO RIO PARACATÚ | C28: =C24 -> Serviço de elaboração de diagnóstico e projeto hidroambinetal. | D28: =D24 -> hectare | E28: =4137171*0.29 -> 1199779.59 | F28: =F24 -> 4.51 | G28: =ROUND((E28*F28),2) -> 5411005.95
F29: Preço Total (R$) | G29: =SUM(G28:G28) -> 5411005.95
A31: Item | B31: Localização | C31: Serviços | D31: Unidade | E31: Quantidade | F31: Preço Unitário (R$) | G31: Preço (R$)
A32: 8 | B32: BACIA DO RIO URUCUIA | C32: =C28 -> Serviço de elaboração de diagnóstico e projeto hidroambinetal. | D32: =D28 -> hectare | E32: =2503253*0.35 -> 876138.55 | F32: =F28 -> 4.51 | G32: =ROUND((E32*F32),2) -> 3951384.86
F33: Preço Total (R$) | G33: =SUM(G32:G32) -> 3951384.86
A35: Item | B35: Localização | C35: Serviços | D35: Unidade | E35: Quantidade | F35: Preço Unitário (R$) | G35: Preço (R$)
A36: 9 | B36: BACIA DOS RIOS DO MÉDIO SÃO FRANCISCO | C36: =C32 -> Serviço de elaboração de diagnóstico e projeto hidroambinetal. | D36: =D32 -> hectare | E36: =3115094*0.29 -> 903377.26 | F36: =F32 -> 4.51 | G36: =ROUND((E36*F36),2) -> 4074231.44
F37: Preço Total (R$) | G37: =SUM(G36:G36) -> 4074231.44
A39: Item | B39: Localização | C39: Serviços | D39: Unidade | E39: Quantidade | F39: Preço Unitário (R$) | G39: Preço (R$)
A40: 10 | B40: BACIA DOS RIOS DO VERDE GRANDE | C40: =C36 -> Serviço de elaboração de diagnóstico e projeto hidroambinetal. | D40: =D36 -> hectare | E40: =2700352*0.35 -> 945123.2 | F40: =F36 -> 4.51 | G40: =ROUND((E40*F40),2) -> 4262505.63
F41: Preço Total (R$) | G41: =SUM(G40:G40) -> 4262505.63
F43: TOTAL (R$) | G43: =G41+G37+G33+G29+G25+G21+G17+G13+G9+G5 -> 33390894.58
